bitfinex/quotes_SOLUSD_20230110
["timestamp","ask_amount","ask_price","bid_price","bid_amount"]
[1673310261132,110.8888,16.442,16.43,75.54211673]
[1673310261459,110.8888,16.442,16.431,20.0]
[1673310261859,110.8888,16.442,16.432,17.0]
[1673310265129,45.64,16.441,16.432,17.0]
[1673310265452,156.5188,16.442,16.432,17.0]
[1673310266499,156.5188,16.442,16.433,15.87038076]
[1673310266713,110.8888,16.442,16.431,20.0]
[1673310266919,110.8888,16.442,16.432,20.0]
[1673310267135,118.9087,16.443,16.432,20.0]
[1673310267330,118.9087,16.443,16.433,17.0]
[1673310267662,45.62,16.448,16.434,20.0]
[1673310267858,108.0064,16.449,16.434,104.20350874]
[1673310268063,108.0064,16.449,16.435,52.87038076]
[1673310268279,108.0064,16.449,16.437,20.0]
[1673310268494,108.0064,16.449,16.438,20.0]
[1673310268697,108.0064,16.449,16.438,75.54211673]
[1673310268914,108.0064,16.449,16.439,32.87038076]
[1673310269244,108.0064,16.449,16.44,20.0]
[1673310270400,108.0064,16.449,16.441,17.0]
[1673310270591,108.0064,16.449,16.442,20.0]
[1673310271012,51.6938512,16.451,16.442,20.0]
[1673310271218,6.0838512,16.451,16.44,20.0]
[1673310273428,6.0838512,16.451,16.44,223.23368448]
[1673310273644,6.0838512,16.451,16.441,31.04156023]
[1673310273850,6.0838512,16.451,16.443,20.0]
[1673310274064,6.0838512,16.451,16.444,20.0]
[1673310274270,6.0838512,16.451,16.444,74.28717665]
[1673310274483,45.61,16.45,16.431,130.4129]
[1673310274815,45.61,16.45,16.434,138.9134]
[1673310275022,45.61,16.45,16.436,15.87038076]
[1673310275239,45.61,16.45,16.437,20.0]
[1673310275634,45.61,16.45,16.438,20.0]
[1673310275861,45.61,16.45,16.439,20.0]
[1673310276079,45.61,16.45,16.44,20.0]
[1673310277759,6.0838512,16.451,16.44,20.0]
[1673310277958,6.0838512,16.451,16.441,35.87038076]
[1673310278177,6.0838512,16.451,16.442,20.0]
[1673310278486,6.0838512,16.451,16.443,17.0]
[1673310278695,6.0838512,16.451,16.444,40.0]
[1673310279020,6.0838512,16.451,16.445,17.0]
[1673310279207,6.0838512,16.451,16.447,20.0]
[1673310279416,6.0838512,16.451,16.448,20.0]
[1673310284907,6.0838512,16.451,16.448,35.87038076]
[1673310285100,5.12e-05,16.451,16.448,35.87038076]
[1673310285536,5.12e-05,16.451,16.449,20.0]
[1673310285748,5.12e-05,16.451,16.45,20.0]
[1673310286674,5.12e-05,16.451,16.45,35.87038076]
[1673310287731,5.12e-05,16.451,16.45,52.87038076]
[1673310289410,5.12e-05,16.451,16.45,87.32599417]
[1673310290043,5.12e-05,16.451,16.45,119.719057]
[1673310291201,5.12e-05,16.451,16.45,54.45561341]
[1673310291517,5.12e-05,16.451,16.45,20.0]
[1673310291741,5.12e-05,16.451,16.445,20.0]
[1673310291923,5.12e-05,16.451,16.441,391.18850392]
[1673310292143,45.61,16.45,16.442,20.0]
[1673310292354,45.61,16.45,16.44,22.08]
[1673310292668,20.0,16.449,16.437,15.87038076]
[1673310292890,45.62,16.448,16.434,20.0]
[1673310293521,20.0,16.447,16.433,386.64302449]
[1673310293728,45.62,16.446,16.433,386.64302449]
[1673310294055,45.62,16.446,16.434,20.0]
[1673310294470,45.62,16.446,16.43,22.28]
[1673310294678,20.0,16.445,16.431,20.0]
[1673310294883,45.63,16.444,16.431,20.0]
[1673310295111,45.63,16.444,16.432,35.87038076]
[1673310295327,45.63,16.444,16.434,20.0]
[1673310295528,45.63,16.444,16.435,20.0]
[1673310295724,45.63,16.444,16.435,35.87038076]
[1673310295936,45.62,16.446,16.436,17.0]
[1673310296146,45.62,16.446,16.437,20.0]
[1673310296463,45.62,16.446,16.438,17.0]
[1673310296681,45.62,16.446,16.439,20.0]
[1673310297530,20.0,16.447,16.439,20.0]
[1673310297728,45.62,16.446,16.44,17.0]
[1673310297940,45.62,16.446,16.441,20.0]
[1673310298149,20.0,16.445,16.436,20.0]
[1673310298369,45.63,16.444,16.436,20.0]
[1673310298788,45.63,16.444,16.432,35.87038076]
[1673310299102,45.63,16.444,16.433,15.87038076]
[1673310299310,45.62,16.446,16.434,20.0]
[1673310299514,45.62,16.446,16.435,20.0]
[1673310300050,45.62,16.448,16.436,17.0]
[1673310300365,65.61,16.449,16.437,20.0]
[1673310300578,45.61,16.449,16.437,20.0]
[1673310301835,45.61,16.449,16.438,17.0]
[1673310302050,45.61,16.449,16.439,20.0]
[1673310302464,45.61,16.449,16.44,17.0]
[1673310302677,45.61,16.449,16.441,20.0]
[1673310302874,20.0,16.448,16.441,20.0]
[1673310303191,20.0,16.446,16.432,20.0]
[1673310303394,45.62,16.445,16.432,20.0]
[1673310303837,45.62,16.445,16.432,35.87038076]
[1673310304050,45.62,16.447,16.433,17.0]
[1673310304357,45.62,16.447,16.434,20.0]
[1673310304589,45.62,16.447,16.435,17.0]
[1673310304975,45.62,16.447,16.43,72.22894674]
[1673310305180,45.62,16.447,16.432,20.0]
[1673310305181,17.0,16.446,16.432,20.0]
[1673310305513,65.62,16.445,16.425,26.02718232]
[1673310305733,17.0,16.444,16.426,20.0]
[1673310305948,20.0,16.442,16.425,26.02718232]
[1673310306261,157.0683,16.441,16.425,26.02718232]
[1673310306459,20.0,16.44,16.425,26.02718232]
[1673310306779,45.64,16.439,16.425,26.02718232]
[1673310307180,45.64,16.439,16.426,20.0]
[1673310307393,45.64,16.439,16.423,20.0]
[1673310307930,45.64,16.439,16.419,243.98149456]
[1673310308137,45.64,16.439,16.4,88.37]
[1673310308138,39.35893185,16.438,16.406,110.1365]
[1673310308363,45.65,16.437,16.41,22.1]
[1673310308561,20.0,16.435,16.41,22.1]
[1673310308875,85.03114869,16.434,16.41,22.1]
[1673310309719,48.03114869,16.434,16.42,22.1]
[1673310310031,45.65,16.434,16.421,16.36496992]
[1673310310221,45.64,16.439,16.422,20.0]
[1673310310431,45.64,16.439,16.423,17.0]
[1673310310854,20.0,16.438,16.423,17.0]
[1673310311080,45.65,16.437,16.423,17.0]
[1673310311295,45.65,16.437,16.423,37.2297284]
[1673310311483,20.0,16.436,16.422,20.0]
[1673310311705,62.65,16.435,16.42,20.0]
[1673310312138,20.0,16.434,16.42,20.0]
[1673310312353,62.66,16.433,16.419,20.0]
[1673310312578,62.66,16.433,16.416,20.0]
[1673310312781,62.66,16.433,16.415,37.2297284]
[1673310312994,20.0,16.432,16.4,110.73]
[1673310313197,64.40356061,16.431,16.408,16.36496992]
[1673310313407,20.0,16.43,16.408,16.36496992]
[1673310313622,84.49473794,16.429,16.406,30.88431519]
[1673310314048,84.49473794,16.429,16.406,47.24928511]
[1673310314251,20.0,16.428,16.406,47.24928511]
[1673310314465,64.49473794,16.427,16.406,47.24928511]
[1673310314789,64.49473794,16.427,16.406,80.04458579]
[1673310314999,64.49473794,16.427,16.407,20.0]
[1673310315210,62.67,16.427,16.407,20.0]
[1673310315398,62.67,16.427,16.409,20.0]
[1673310315609,62.67,16.427,16.41,20.0]
[1673310315816,45.67,16.427,16.41,36.36496992]
[1673310316052,45.67,16.427,16.411,33.36496992]
[1673310316237,45.67,16.427,16.412,20.0]
[1673310316445,45.67,16.428,16.413,17.0]
[1673310316876,45.67,16.428,16.413,33.36496992]
[1673310317105,45.66,16.431,16.414,69.1602706]
[1673310317313,45.66,16.433,16.414,69.1602706]
[1673310317503,45.66,16.433,16.415,100.04458579]
[1673310317718,45.66,16.433,16.416,20.0]
[1673310318035,45.66,16.433,16.416,133.0965476]
[1673310318244,45.66,16.433,16.417,97.04458579]
[1673310318457,45.66,16.433,16.418,20.0]
[1673310318872,20.0,16.431,16.419,17.0]
[1673310319084,20.0,16.431,16.42,20.0]
[1673310319624,20.0,16.431,16.418,20.0]
[1673310319821,62.67,16.43,16.418,20.0]
[1673310320143,20.0,16.429,16.418,20.0]
[1673310320354,45.67,16.428,16.418,20.0]
[1673310320678,65.67,16.429,16.418,20.0]
[1673310320990,45.67,16.429,16.418,20.0]
[1673310321511,20.0,16.428,16.418,20.0]
[1673310321713,45.67,16.427,16.418,20.0]
[1673310321920,20.0,16.428,16.418,20.0]
[1673310324648,20.0,16.426,16.413,20.0]
[1673310325291,20.0,16.426,16.414,16.36496992]
[1673310325501,62.68,16.425,16.401,109.4175]
[1673310325710,20.0,16.424,16.408,20.0]
[1673310325935,62.69,16.423,16.408,36.36496992]
[1673310326245,20.0,16.422,16.408,36.36496992]
[1673310326455,45.69,16.421,16.408,16.36496992]
[1673310326647,20.0,16.42,16.408,16.36496992]
[1673310326858,20.0,16.418,16.408,16.36496992]
[1673310327193,45.7,16.419,16.408,16.36496992]
[1673310327595,45.7,16.419,16.409,20.0]
[1673310327916,45.69,16.421,16.41,17.0]
[1673310328130,45.69,16.421,16.411,20.0]
[1673310329398,37.0,16.42,16.411,20.0]
[1673310329591,37.0,16.42,16.405,30.88431519]
[1673310329592,45.7,16.419,16.406,36.36496992]
[1673310329803,20.0,16.418,16.406,36.36496992]
[1673310330748,45.7,16.419,16.406,36.36496992]
[1673310330951,45.7,16.419,16.407,17.0]
[1673310331157,45.7,16.419,16.408,20.0]
[1673310331600,45.7,16.419,16.407,20.0]
[1673310332853,45.7,16.419,16.408,17.0]
[1673310333063,45.7,16.419,16.409,20.0]
[1673310333278,415.0,16.438,16.409,20.0]
[1673310333279,45.69,16.423,16.41,20.0]
[1673310333477,20.0,16.423,16.41,53.36496992]
[1673310333689,45.69,16.422,16.411,20.0]
[1673310333901,45.69,16.422,16.412,17.0]
[1673310335073,20.0,16.422,16.412,17.0]
[1673310336559,45.69,16.421,16.412,17.0]
[1673310336730,45.69,16.423,16.412,17.0]
[1673310337378,45.67,16.43,16.412,33.36496992]
[1673310337696,164.3193,16.432,16.413,53.65862848]
[1673310337910,118.6593,16.432,16.413,117.33824435]
[1673310338107,118.6593,16.432,16.415,20.0]
[1673310338559,118.6593,16.432,16.416,133.70321427]
[1673310338963,118.6593,16.432,16.417,117.04458579]
[1673310339175,118.6593,16.432,16.421,20.0]
[1673310339394,118.6593,16.432,16.422,37.0]
[1673310339607,118.6593,16.432,16.422,53.36496992]
[1673310340035,45.64,16.439,16.422,53.36496992]
[1673310340240,115.9878,16.438,16.422,53.36496992]
[1673310340443,45.65,16.437,16.422,53.36496992]
[1673310341597,65.65,16.437,16.422,53.36496992]
[1673310343694,65.65,16.437,16.422,37.0]
[1673310343910,45.66,16.433,16.422,37.0]
[1673310344131,20.0,16.432,16.422,37.0]
[1673310344331,45.66,16.433,16.422,53.36496992]
[1673310344750,45.65,16.436,16.422,53.36496992]
[1673310344961,45.65,16.436,16.422,37.0]
[1673310345172,20.0,16.435,16.422,37.0]
[1673310345394,158.8675,16.434,16.422,37.0]
[1673310345607,113.2175,16.434,16.422,37.0]
[1673310347704,113.2175,16.434,16.422,20.0]
[1673310347902,113.2175,16.434,16.418,30.88431519]
[1673310347903,20.0,16.432,16.421,20.0]
[1673310348114,45.66,16.431,16.419,20.0]
[1673310348534,45.66,16.431,16.411,33.65862848]
[1673310348751,45.66,16.431,16.412,20.0]
[1673310348752,37.0,16.43,16.412,20.0]
[1673310348965,20.0,16.428,16.412,20.0]
[1673310349168,62.67,16.427,16.409,20.0]
[1673310349592,20.0,16.426,16.409,16.36496992]
[1673310349802,20.0,16.424,16.409,16.36496992]
[1673310350026,45.69,16.423,16.41,17.0]
[1673310350656,45.69,16.423,16.411,20.0]
[1673310350867,45.69,16.423,16.409,16.36496992]
[1673310351689,45.69,16.423,16.41,17.0]
[1673310352126,45.69,16.423,16.411,20.0]
[1673310352340,45.69,16.423,16.412,17.0]
[1673310353369,45.69,16.423,16.411,20.0]
[1673310353710,20.0,16.422,16.41,20.0]
[1673310353890,45.69,16.421,16.41,20.0]
[1673310354097,20.0,16.42,16.41,20.0]
[1673310354842,20.0,16.42,16.411,17.0]
[1673310355173,45.69,16.421,16.412,20.0]
[1673310357910,37.0,16.42,16.4,22.28]
[1673310358103,37.0,16.42,16.401,20.0]
[1673310358104,65.7,16.419,16.401,20.0]
[1673310358315,37.0,16.418,16.401,16.36496992]
[1673310358642,45.7,16.417,16.402,20.0]
[1673310359254,20.0,16.415,16.402,20.0]
[1673310359478,45.71,16.414,16.402,20.0]
[1673310359694,20.0,16.413,16.401,20.0]
[1673310359904,45.72,16.412,16.401,20.0]
[1673310361462,45.71,16.414,16.4,20.0]
[1673310361670,20.0,16.413,16.4,20.0]
[1673310361900,45.72,16.412,16.4,36.36496992]
[1673310362096,45.72,16.412,16.4,20.0]
[1673310362524,17.0,16.411,16.398,20.0]
[1673310362732,45.72,16.41,16.395,36.36496992]
[1673310362942,20.0,16.411,16.396,20.0]
[1673310363150,45.72,16.41,16.399,16.36496992]
[1673310363690,20.0,16.411,16.4,20.0]
[1673310363877,45.72,16.41,16.401,17.0]
[1673310364085,45.72,16.41,16.402,20.0]
[1673310364306,20.0,16.411,16.402,20.0]
[1673310364711,20.0,16.409,16.396,20.0]
[1673310365152,20.0,16.409,16.395,20.0]
[1673310365771,20.0,16.409,16.396,17.0]
[1673310366093,20.0,16.409,16.397,20.0]
[1673310366414,45.72,16.41,16.398,17.0]
[1673310366729,20.0,16.413,16.4,20.0]
[1673310366945,20.0,16.413,16.401,17.0]
[1673310367157,45.72,16.412,16.402,20.0]
[1673310367684,45.72,16.412,16.401,20.0]
[1673310368190,20.0,16.411,16.401,20.0]
[1673310368631,20.0,16.411,16.399,20.0]
[1673310368847,20.0,16.411,16.4,17.0]
[1673310369055,20.0,16.411,16.401,20.0]
[1673310369464,20.0,16.411,16.402,17.0]
[1673310370941,45.72,16.412,16.402,17.0]
[1673310371147,20.0,16.413,16.402,17.0]
[1673310371361,45.72,16.412,16.402,17.0]
[1673310371582,20.0,16.411,16.402,17.0]
[1673310372320,20.0,16.411,16.401,20.0]
[1673310372532,20.0,16.411,16.399,16.36496992]
[1673310372533,17.0,16.41,16.4,20.0]
[1673310372749,20.0,16.408,16.394,36.36496992]
[1673310373060,45.73,16.407,16.394,36.36496992]
[1673310373793,20.0,16.413,16.395,20.0]
[1673310374105,20.0,16.413,16.396,49.1602706]
[1673310374313,20.0,16.413,16.397,37.0]
[1673310374526,20.0,16.413,16.398,20.0]
[1673310374742,20.0,16.413,16.399,37.0]
[1673310374943,20.0,16.413,16.399,53.36496992]
[1673310375151,20.0,16.413,16.4,16.36496992]
[1673310375364,45.71,16.414,16.401,17.0]
[1673310375579,20.0,16.413,16.402,20.0]
[1673310375791,20.0,16.413,16.403,17.0]
[1673310377476,45.71,16.414,16.403,17.0]
[1673310377787,20.0,16.414,16.403,17.0]
[1673310378203,20.0,16.414,16.403,33.36496992]
[1673310378398,20.0,16.415,16.403,33.36496992]
[1673310378609,45.7,16.417,16.403,33.36496992]
[1673310378833,45.7,16.418,16.403,33.36496992]
[1673310379034,45.69,16.421,16.404,40.0]
[1673310379469,45.69,16.421,16.405,16.36496992]
[1673310379806,45.69,16.421,16.406,20.0]
[1673310379981,20.0,16.42,16.406,37.0]
[1673310380195,20.0,16.42,16.407,16.36496992]
[1673310380739,20.0,16.42,16.408,20.0]
[1673310381548,20.0,16.42,16.4,21.91]
[1673310381778,20.0,16.418,16.402,20.0]
[1673310382097,20.0,16.416,16.399,16.36496992]
[1673310382307,20.0,16.414,16.399,16.36496992]
[1673310383148,45.71,16.415,16.396,32.79530068]
[1673310383350,45.71,16.415,16.396,49.1602706]
[1673310383570,45.71,16.415,16.402,20.0]
[1673310384082,45.71,16.415,16.403,17.0]
[1673310390417,45.7,16.419,16.403,17.0]
[1673310390609,45.66,16.431,16.41,44.04]
[1673310390826,45.66,16.431,16.411,139.4955]
[1673310391036,45.63,16.442,16.411,208.11686841]
[1673310391370,45.66,16.433,16.412,108.36203876]
[1673310391557,45.66,16.433,16.414,20.0]
[1673310391768,45.64,16.44,16.42,21.91]
[1673310391979,20.0,16.439,16.421,20.0]
[1673310392183,45.64,16.438,16.421,131.52086514]
[1673310392394,45.64,16.438,16.422,76.26446665]
[1673310392600,45.64,16.438,16.423,20.0]
[1673310392814,45.64,16.438,16.423,158.38056557]
[1673310393042,45.64,16.438,16.424,115.63989522]
[1673310393571,45.64,16.438,16.425,52.25639849]
[1673310394180,45.64,16.438,16.426,17.0]
[1673310394600,45.64,16.438,16.427,52.25639849]
[1673310395049,65.64,16.441,16.427,52.25639849]
[1673310395237,45.64,16.441,16.428,20.0]
[1673310395565,45.64,16.441,16.428,72.25639849]
[1673310397134,45.64,16.441,16.429,17.0]
[1673310397562,45.64,16.441,16.43,20.0]
[1673310397978,45.64,16.441,16.43,72.25639849]
[1673310398190,45.64,16.441,16.431,20.0]
[1673310398512,45.64,16.441,16.431,72.25639849]
[1673310398720,97.0899,16.443,16.431,72.25639849]
[1673310398935,20.0,16.447,16.431,72.25639849]
[1673310399148,62.62,16.446,16.431,72.25639849]
[1673310399541,20.0,16.445,16.431,72.25639849]
[1673310399760,45.63,16.444,16.431,72.25639849]
[1673310400096,20.0,16.442,16.431,72.25639849]
[1673310400299,62.64,16.441,16.431,72.25639849]
[1673310400512,62.64,16.441,16.431,20.0]
[1673310400710,62.64,16.441,16.428,20.0]
[1673310401144,62.64,16.441,16.427,20.0]
[1673310401554,62.64,16.441,16.427,59.74067035]
[1673310401971,45.64,16.441,16.428,20.0]
[1673310402298,45.62,16.446,16.43,20.0]
[1673310402507,45.62,16.446,16.43,40.0]
[1673310402723,45.62,16.446,16.431,20.0]
[1673310403458,37.0,16.445,16.431,20.0]
[1673310403674,45.63,16.444,16.431,20.0]
[1673310404171,45.63,16.444,16.43,20.0]
[1673310404387,20.0,16.442,16.421,20.0]
[1673310404611,82.64,16.441,16.422,20.0]
[1673310404814,20.0,16.44,16.422,39.74067035]
[1673310405023,62.64,16.439,16.423,20.0]
[1673310405560,62.64,16.439,16.422,39.74067035]
[1673310406108,20.0,16.438,16.422,39.74067035]
[1673310406276,45.65,16.437,16.422,39.74067035]
[1673310406694,45.65,16.437,16.422,86.12416708]
[1673310406918,20.0,16.438,16.422,86.12416708]
[1673310407125,45.65,16.437,16.422,86.12416708]
[1673310408392,45.64,16.438,16.422,86.12416708]
[1673310410700,45.64,16.438,16.423,39.74067035]
[1673310410904,45.64,16.438,16.424,17.0]
[1673310411856,17.0,16.437,16.423,39.74067035]
[1673310412076,37.0,16.438,16.423,39.74067035]
[1673310412282,20.0,16.436,16.423,39.74067035]
[1673310413026,45.65,16.435,16.423,39.74067035]
[1673310413547,45.65,16.435,16.422,46.38349673]
[1673310413548,17.0,16.434,16.422,46.38349673]
[1673310413765,45.66,16.433,16.41,110.34]
[1673310414081,45.66,16.433,16.418,20.0]
[1673310414082,20.0,16.432,16.418,20.0]
[1673310414273,20.0,16.43,16.418,20.0]
[1673310414918,62.66,16.431,16.418,20.0]
[1673310415659,45.66,16.431,16.418,20.0]
[1673310415861,45.66,16.433,16.419,37.0]
[1673310416070,45.66,16.433,16.42,20.0]
[1673310416495,45.66,16.433,16.421,17.0]
[1673310416688,45.66,16.433,16.422,20.0]
[1673310419421,45.64,16.438,16.422,36.36496992]
[1673310419631,45.64,16.439,16.423,20.0]
[1673310419952,45.64,16.439,16.424,16.36496992]
[1673310420164,45.64,16.439,16.424,53.70421508]
[1673310420383,45.64,16.439,16.425,37.33924516]
[1673310420804,45.64,16.439,16.426,17.0]
[1673310425948,20.0,16.438,16.425,37.33924516]
[1673310426182,62.65,16.437,16.422,20.0]
[1673310426382,20.0,16.436,16.419,20.0]
[1673310426594,62.65,16.435,16.42,20.0]
[1673310426804,20.0,16.434,16.42,20.0]
[1673310427014,20.0,16.432,16.42,20.0]
[1673310427342,45.66,16.431,16.419,20.0]
[1673310427530,45.66,16.431,16.42,20.0]
[1673310427743,20.0,16.432,16.418,20.0]
[1673310428054,45.66,16.433,16.419,17.0]
[1673310428262,37.0,16.432,16.42,20.0]
[1673310428700,17.0,16.432,16.42,20.0]
[1673310431236,45.66,16.431,16.42,20.0]
[1673310431626,17.0,16.432,16.42,20.0]
[1673310434988,37.0,16.433,16.42,20.0]
[1673310435538,17.0,16.433,16.42,20.0]
[1673310435749,17.0,16.433,16.42,37.35633157]
[1673310436486,116.1155,16.434,16.421,20.0]
[1673310436689,116.1155,16.434,16.422,20.0]
[1673310436902,116.1155,16.434,16.423,20.0]
[1673310437217,116.1155,16.434,16.423,37.35633157]
[1673310437527,116.1155,16.434,16.424,17.35633157]
[1673310438778,65.64,16.439,16.424,17.35633157]
[1673310439734,45.64,16.439,16.424,17.35633157]
[1673310439928,45.64,16.439,16.424,54.69557673]
[1673310440266,45.64,16.439,16.425,17.35633157]
[1673310440584,45.64,16.439,16.425,54.69557673]
[1673310440899,17.0,16.438,16.425,37.33924516]
[1673310441085,17.0,16.438,16.422,20.0]
[1673310441086,45.65,16.437,16.422,20.0]
[1673310441300,17.0,16.436,16.422,20.0]
[1673310441502,20.0,16.434,16.422,37.35633157]
[1673310442061,45.65,16.435,16.422,37.35633157]
[1673310443938,45.65,16.435,16.423,17.0]
[1673310445812,45.65,16.437,16.423,17.0]
[1673310446027,20.0,16.436,16.423,17.0]
[1673310446234,45.65,16.435,16.423,17.0]
[1673310446450,45.65,16.435,16.423,34.35633157]
[1673310447719,20.0,16.436,16.423,34.35633157]
[1673310447927,45.65,16.435,16.423,34.35633157]
[1673310452243,45.65,16.435,16.423,71.69557673]
[1673310452457,20.0,16.438,16.423,71.69557673]
[1673310452458,20.0,16.436,16.423,71.69557673]
[1673310452767,45.65,16.435,16.423,71.69557673]
[1673310453492,20.0,16.436,16.423,71.69557673]
[1673310453703,45.65,16.437,16.423,71.69557673]
[1673310456759,17.0,16.436,16.423,37.33924516]
[1673310457075,65.65,16.435,16.422,20.0]
[1673310457268,17.0,16.434,16.421,20.0]
[1673310457478,65.66,16.433,16.421,20.0]
[1673310457893,17.0,16.432,16.419,20.0]
[1673310461996,20.0,16.43,16.418,36.56529006]
[1673310462206,20.0,16.428,16.415,32.43209143]
[1673310462765,20.0,16.426,16.412,36.56529006]
[1673310462980,20.0,16.424,16.412,36.56529006]
[1673310463385,20.0,16.424,16.412,53.92162163]
[1673310463596,45.69,16.423,16.412,53.92162163]
[1673310464015,65.68,16.424,16.412,53.92162163]
[1673310465610,17.0,16.423,16.412,17.35633157]
[1673310465816,20.0,16.422,16.412,17.35633157]
[1673310466768,20.0,16.422,16.408,119.3812]
[1673310467079,20.0,16.422,16.409,20.0]
[1673310469082,20.0,16.422,16.409,37.35633157]
[1673310469803,20.0,16.42,16.409,37.35633157]
[1673310470359,17.0,16.421,16.409,37.35633157]
[1673310472231,17.0,16.421,16.409,20.0]
[1673310472442,17.0,16.421,16.408,20.0]
[1673310473610,20.0,16.419,16.407,17.35633157]
[1673310473821,62.7,16.418,16.407,17.35633157]
[1673310474035,17.0,16.418,16.402,146.35649006]
[1673310474351,17.0,16.418,16.403,17.35633157]
[1673310475178,65.7,16.419,16.403,53.92162163]
[1673310475507,65.25536607,16.419,16.404,17.35633157]
[1673310476657,45.7,16.419,16.404,17.35633157]
[1673310476870,45.69,16.423,16.405,89.77590845]
[1673310477079,115.2156,16.424,16.407,20.0]
[1673310477272,115.2156,16.424,16.408,20.0]
[1673310477482,115.2156,16.424,16.408,143.69753008]
[1673310477701,115.2156,16.424,16.409,73.92162163]
[1673310477922,115.2156,16.424,16.41,20.0]
[1673310478237,115.2156,16.424,16.41,74.728423]
[1673310478442,115.2156,16.424,16.411,54.728423]
[1673310478650,115.2156,16.424,16.412,20.0]
[1673310478863,115.2156,16.424,16.412,37.35633157]
[1673310479814,115.2156,16.424,16.413,17.35633157]
[1673310482762,115.2156,16.424,16.413,54.728423]
[1673310483178,115.2156,16.424,16.414,17.35633157]
[1673310486351,17.0,16.423,16.414,17.35633157]
[1673310486558,20.0,16.422,16.414,17.35633157]
[1673310489168,17.0,16.421,16.412,20.0]
[1673310489379,45.69,16.42,16.401,134.2536]
[1673310489590,20.0,16.419,16.407,37.37209143]
[1673310489799,20.0,16.419,16.408,20.0]
[1673310495905,160.8956,16.424,16.409,54.37209143]
[1673310496116,115.2156,16.424,16.41,20.0]
[1673310496337,115.2156,16.424,16.411,17.0]
[1673310496531,160.8956,16.424,16.412,20.0]
[1673310497391,20.0,16.423,16.412,20.0]
[1673310497905,45.69,16.422,16.412,20.0]
[1673310498109,65.69,16.423,16.412,20.0]
[1673310501810,45.69,16.423,16.412,20.0]
[1673310503596,160.8956,16.424,16.413,17.44778232]
[1673310503800,45.67,16.429,16.413,59.04185239]
[1673310504119,45.66,16.432,16.414,86.85159934]
[1673310504317,45.66,16.433,16.414,128.44566941]
[1673310504526,45.66,16.433,16.415,213.08968709]
[1673310504527,20.0,16.432,16.415,213.08968709]
[1673310504737,45.66,16.431,16.416,20.0]
[1673310504955,45.66,16.431,16.416,61.59407007]
[1673310505161,45.66,16.431,16.417,59.04185239]
[1673310505801,17.0,16.43,16.418,20.0]
[1673310505993,17.0,16.43,16.418,37.9475944]
[1673310506200,20.0,16.429,16.418,17.9475944]